[Event "*** Qualifier 1: Titled Tuesday 3|2 Blitz"]
[Site "Chess.com"]
[Date "2017.04.04"]
[Round "4"]
[White "ka1ser64"]
[Black "Superfelix"]
[Result "1-0"]
[WhiteElo "2338"]
[BlackElo "2310"]
[TimeControl "180+2"]
[EndTime "13:50:08 PDT"]
[Termination "ka1ser64 won by checkmate"]

1. d4 {[%clk 0:03:02]} 1... Nf6 {[%clk 0:02:56.9]} 2. c4 {[%clk 0:03:03]} 2...
g6 {[%clk 0:02:58.1]} 3. Nc3 {[%clk 0:03:04.1]} 3... Bg7 {[%clk 0:02:59.7]} 4.
e4 {[%clk 0:03:05.7]} 4... d6 {[%clk 0:03:01.1]} 5. Nf3 {[%clk 0:03:07.2]} 5...
O-O {[%clk 0:03:02.7]} 6. Be2 {[%clk 0:03:08.8]} 6... Na6 {[%clk 0:03:04.2]} 7.
O-O {[%clk 0:03:10.3]} 7... e5 {[%clk 0:03:05.3]} 8. Re1 {[%clk 0:03:12]} 8...
Qe8 {[%clk 0:03:05.9]} 9. Bf1 {[%clk 0:03:00.9]} 9... c6 {[%clk 0:03:06.1]} 10.
Be3 {[%clk 0:02:52.7]} 10... Ng4 {[%clk 0:03:04.9]} 11. Bg5 {[%clk 0:02:50.2]}
11... f6 {[%clk 0:03:06]} 12. Bd2 {[%clk 0:02:48.4]} 12... Nc7 {[%clk
0:02:59.9]} 13. h3 {[%clk 0:02:21.8]} 13... Nh6 {[%clk 0:03:00.3]} 14. Be3
{[%clk 0:02:20]} 14... Nf7 {[%clk 0:02:59.2]} 15. c5 {[%clk 0:02:00.3]} 15...
dxc5 {[%clk 0:02:59.4]} 16. dxc5 {[%clk 0:02:01.1]} 16... Be6 {[%clk 0:02:58.7]}
17. Qa4 {[%clk 0:01:58.2]} 17... a5 {[%clk 0:02:56.8]} 18. Rad1 {[%clk
0:01:54.4]} 18... Qe7 {[%clk 0:02:53.8]} 19. Nd2 {[%clk 0:01:51.9]} 19... Bh6
{[%clk 0:02:46.5]} 20. Bxh6 {[%clk 0:01:30.2]} 20... Nxh6 {[%clk 0:02:48.4]} 21.
Qa3 {[%clk 0:01:31.7]} 21... Nf7 {[%clk 0:02:33.4]} 22. Nc4 {[%clk 0:01:32.5]}
22... Bxc4 {[%clk 0:02:34]} 23. Bxc4 {[%clk 0:01:32.9]} 23... Ne6 {[%clk
0:02:34.4]} 24. Na4 {[%clk 0:01:33.2]} 24... Rfd8 {[%clk 0:02:31.4]} 25. Nb6
{[%clk 0:01:33]} 25... Rxd1 {[%clk 0:02:31.4]} 26. Rxd1 {[%clk 0:01:33.2]} 26...
Rd8 {[%clk 0:02:29.3]} 27. Rxd8+ {[%clk 0:01:33.9]} 27... Nfxd8 {[%clk 0:02:31]}
28. Qxa5 {[%clk 0:01:33.7]} 28... Kg7 {[%clk 0:02:31.8]} 29. b4 {[%clk
0:01:30.4]} 29... Nd4 {[%clk 0:02:30.8]} 30. Nc8 {[%clk 0:01:29.9]} 30... Qd7
{[%clk 0:02:24.7]} 31. Nd6 {[%clk 0:01:30.5]} 31... N8e6 {[%clk 0:02:25]} 32.
Qa8 {[%clk 0:01:27.9]} 32... b5 {[%clk 0:02:24.4]} 33. cxb6 {[%clk 0:01:04.9]}
33... Qxd6 {[%clk 0:02:24.5]} 34. b7 {[%clk 0:01:06.1]} 34... Qxb4 {[%clk
0:02:14.6]} 35. b8=Q {[%clk 0:01:00.3]} 35... Qe1+ {[%clk 0:01:52.8]} 36. Kh2
{[%clk 0:00:58.8]} 36... Qxf2 {[%clk 0:01:39.9]} 37. Qa3 {[%clk 0:00:57.7]}
37... Nf4 {[%clk 0:01:35.1]} 38. Qbf8# {[%clk 0:00:57.1]} 1-0

[Event "*** Qualifier 1: Titled Tuesday 3|2 Blitz"]
[Site "Chess.com"]
[Date "2017.04.04"]
[Round "4"]
[White "Alex_Molchanov"]
[Black "michaelk123"]
[Result "1-0"]
[WhiteElo "2352"]
[BlackElo "2198"]
[TimeControl "180+2"]
[EndTime "13:50:23 PDT"]
[Termination "Alex_Molchanov won by resignation"]

1. d4 {[%clk 0:03:02]} 1... Nf6 {[%clk 0:02:55.7]} 2. c4 {[%clk 0:03:03.2]} 2...
g6 {[%clk 0:02:53.1]} 3. Nc3 {[%clk 0:03:04.2]} 3... d5 {[%clk 0:02:54.3]} 4.
Nf3 {[%clk 0:03:03.9]} 4... Bg7 {[%clk 0:02:54.5]} 5. Bg5 {[%clk 0:03:05]} 5...
Ne4 {[%clk 0:02:53.9]} 6. cxd5 {[%clk 0:03:05.7]} 6... Nxg5 {[%clk 0:02:54.4]}
7. Nxg5 {[%clk 0:03:06.5]} 7... e6 {[%clk 0:02:55.7]} 8. h4 {[%clk 0:03:07.5]}
8... exd5 {[%clk 0:02:46.8]} 9. e3 {[%clk 0:03:08.8]} 9... h6 {[%clk 0:02:37.2]}
10. Nf3 {[%clk 0:03:05.8]} 10... c6 {[%clk 0:02:35.3]} 11. Be2 {[%clk
0:03:03.4]} 11... a5 {[%clk 0:02:30.6]} 12. Na4 {[%clk 0:03:00.5]} 12... Bg4
{[%clk 0:02:19.4]} 13. Qb3 {[%clk 0:02:58.5]} 13... b5 {[%clk 0:02:13.8]} 14.
Nc5 {[%clk 0:02:53.4]} 14... O-O {[%clk 0:02:09.7]} 15. Rc1 {[%clk 0:02:53.1]}
15... Re8 {[%clk 0:02:07]} 16. Nd3 {[%clk 0:02:47.6]} 16... a4 {[%clk
0:02:05.7]} 17. Qc2 {[%clk 0:02:42.5]} 17... Qa5+ {[%clk 0:02:05.8]} 18. Qd2
{[%clk 0:02:42]} 18... Qd8 {[%clk 0:01:53.2]} 19. Nfe5 {[%clk 0:02:35.2]} 19...
Bxe2 {[%clk 0:01:53.7]} 20. Kxe2 {[%clk 0:02:31.3]} 20... Qd6 {[%clk 0:01:54.7]}
21. f4 {[%clk 0:02:28.6]} 21... Ra7 {[%clk 0:01:48.9]} 22. h5 {[%clk 0:02:29.1]}
22... gxh5 {[%clk 0:01:05.5]} 23. Rh3 {[%clk 0:02:07.5]} 23... Bxe5 {[%clk
0:01:05.9]} 24. fxe5 {[%clk 0:01:59.2]} 24... Qg6 {[%clk 0:01:03.9]} 25. Nf4
{[%clk 0:01:59.3]} 25... Qg4+ {[%clk 0:01:04.8]} 26. Kf2 {[%clk 0:01:59.8]}
26... h4 {[%clk 0:01:04.5]} 27. Rch1 {[%clk 0:01:59.7]} 27... f6 {[%clk
0:00:57.6]} 28. Rxh4 {[%clk 0:02:00.4]} 28... Qg7 {[%clk 0:00:56]} 29. e6 {[%clk
0:01:55.8]} 29... Kf8 {[%clk 0:00:10.9]} 30. Rxh6 {[%clk 0:01:55.5]} 30... Qg4
{[%clk 0:00:08]} 31. Rh8+ {[%clk 0:01:49.6]} 31... Ke7 {[%clk 0:00:08.3]} 32.
R8h7+ {[%clk 0:01:50.6]} 32... Kd6 {[%clk 0:00:08.6]} 33. Qb4+ {[%clk
0:01:48.3]} 1-0

[Event "*** Qualifier 1: Titled Tuesday 3|2 Blitz"]
[Site "Chess.com"]
[Date "2017.04.04"]
[Round "4"]
[White "Tesla37"]
[Black "Zhani-Z"]
[Result "1-0"]
[WhiteElo "2566"]
[BlackElo "2379"]
[TimeControl "180+2"]
[EndTime "13:50:29 PDT"]
[Termination "Tesla37 won by checkmate"]

1. e4 {[%clk 0:03:02]} 1... e5 {[%clk 0:03:00.3]} 2. Nf3 {[%clk 0:03:02.4]} 2...
Nc6 {[%clk 0:03:01.8]} 3. Bb5 {[%clk 0:03:02.7]} 3... a6 {[%clk 0:03:02.6]} 4.
Ba4 {[%clk 0:03:03.6]} 4... Nf6 {[%clk 0:03:03.1]} 5. O-O {[%clk 0:03:04.1]}
5... b5 {[%clk 0:03:04.3]} 6. Bb3 {[%clk 0:03:04.4]} 6... Bb7 {[%clk 0:03:05.8]}
7. d3 {[%clk 0:03:05.3]} 7... Be7 {[%clk 0:03:05.5]} 8. Nc3 {[%clk 0:03:04.6]}
8... O-O {[%clk 0:03:06.3]} 9. a3 {[%clk 0:03:05.2]} 9... Nd4 {[%clk 0:03:07.3]}
10. Nxd4 {[%clk 0:03:03.6]} 10... exd4 {[%clk 0:03:07.9]} 11. Ne2 {[%clk
0:03:05.2]} 11... c5 {[%clk 0:03:07.4]} 12. Ng3 {[%clk 0:03:06]} 12... d5 {[%clk
0:02:49.2]} 13. e5 {[%clk 0:03:04.7]} 13... Nd7 {[%clk 0:02:49.1]} 14. Re1
{[%clk 0:02:59.9]} 14... f5 {[%clk 0:02:34.1]} 15. c3 {[%clk 0:02:42.7]} 15...
dxc3 {[%clk 0:02:23]} 16. bxc3 {[%clk 0:02:42.2]} 16... Nb6 {[%clk 0:02:19]} 17.
d4 {[%clk 0:02:40.9]} 17... Nc4 {[%clk 0:02:11.7]} 18. Bc2 {[%clk 0:02:39.5]}
18... g6 {[%clk 0:02:12.6]} 19. Bh6 {[%clk 0:02:34.4]} 19... Rf7 {[%clk
0:02:03.9]} 20. Qf3 {[%clk 0:02:32.9]} 20... Rc8 {[%clk 0:01:16.4]} 21. h4
{[%clk 0:02:30.7]} 21... Bxh4 {[%clk 0:01:09.9]} 22. e6 {[%clk 0:02:31]} 22...
Re7 {[%clk 0:01:05.1]} 23. Nxf5 {[%clk 0:02:30.2]} 23... gxf5 {[%clk 0:01:04.7]}
24. Bxf5 {[%clk 0:02:20.7]} 24... Bf6 {[%clk 0:00:57.6]} 25. Bg4 {[%clk
0:02:09.9]} 25... Bg7 {[%clk 0:00:55.2]} 26. Bg5 {[%clk 0:02:10]} 26... Qd6
{[%clk 0:00:56]} 27. Bf5 {[%clk 0:01:51.2]} 27... Rf8 {[%clk 0:00:54.9]} 28. Qh3
{[%clk 0:01:51.9]} 28... Bf6 {[%clk 0:00:54.8]} 29. Bh6 {[%clk 0:01:47.1]} 29...
Rfe8 {[%clk 0:00:45]} 30. Re2 {[%clk 0:01:40.5]} 30... cxd4 {[%clk 0:00:44.9]}
31. cxd4 {[%clk 0:01:40.8]} 31... Bxd4 {[%clk 0:00:43.3]} 32. Rd1 {[%clk
0:01:37.8]} 32... Bf6 {[%clk 0:00:40.8]} 33. Rd3 {[%clk 0:01:37.6]} 33... d4
{[%clk 0:00:38.2]} 34. Rg3+ {[%clk 0:01:37.5]} 34... Kh8 {[%clk 0:00:39.3]} 35.
Bg7+ {[%clk 0:01:35.8]} 35... Rxg7 {[%clk 0:00:39.4]} 36. Rxg7 {[%clk
0:01:36.7]} 36... Kxg7 {[%clk 0:00:40.9]} 37. Qxh7+ {[%clk 0:01:36.8]} 37... Kf8
{[%clk 0:00:42.1]} 38. Qf7# {[%clk 0:01:38.4]} 1-0

[Event "*** Qualifier 1: Titled Tuesday 3|2 Blitz"]
[Site "Chess.com"]
[Date "2017.04.04"]
[Round "4"]
[White "RobertoJBM"]
[Black "GM_Donatello"]
[Result "1-0"]
[WhiteElo "2417"]
[BlackElo "2550"]
[TimeControl "180+2"]
[EndTime "13:50:30 PDT"]
[Termination "RobertoJBM won by resignation"]

1. d4 {[%clk 0:03:02]} 1... f5 {[%clk 0:02:51.4]} 2. g3 {[%clk 0:03:01]} 2...
Nf6 {[%clk 0:02:51.7]} 3. Bg2 {[%clk 0:03:02.5]} 3... g6 {[%clk 0:02:51.4]} 4.
Nf3 {[%clk 0:03:02.4]} 4... Bg7 {[%clk 0:02:52.2]} 5. O-O {[%clk 0:03:04.3]}
5... O-O {[%clk 0:02:52.6]} 6. b3 {[%clk 0:03:05.3]} 6... a5 {[%clk 0:02:48]} 7.
Bb2 {[%clk 0:03:07.2]} 7... d6 {[%clk 0:02:45.4]} 8. d5 {[%clk 0:03:07.2]} 8...
Na6 {[%clk 0:02:37.2]} 9. c4 {[%clk 0:03:05.6]} 9... Nc5 {[%clk 0:02:34]} 10.
Nd4 {[%clk 0:03:06.4]} 10... Qe8 {[%clk 0:02:15.4]} 11. Nc3 {[%clk 0:03:03.3]}
11... e5 {[%clk 0:02:13.8]} 12. dxe6 {[%clk 0:03:02.9]} 12... c6 {[%clk
0:02:14.9]} 13. Qd2 {[%clk 0:02:54.6]} 13... Nxe6 {[%clk 0:02:11.7]} 14. Nxe6
{[%clk 0:02:52.1]} 14... Qxe6 {[%clk 0:02:12.5]} 15. Rad1 {[%clk 0:02:53.7]}
15... Rd8 {[%clk 0:02:13.3]} 16. Na4 {[%clk 0:02:53]} 16... Ne8 {[%clk
0:02:00.4]} 17. Bxg7 {[%clk 0:02:50.2]} 17... Kxg7 {[%clk 0:02:02.3]} 18. Rfe1
{[%clk 0:02:41.1]} 18... Nf6 {[%clk 0:01:57.9]} 19. Qd4 {[%clk 0:02:36.2]} 19...
Kg8 {[%clk 0:01:44]} 20. e4 {[%clk 0:02:28.8]} 20... fxe4 {[%clk 0:01:44.2]} 21.
Bxe4 {[%clk 0:02:30.7]} 21... Nxe4 {[%clk 0:01:39.7]} 22. Rxe4 {[%clk
0:02:32.6]} 22... Qf7 {[%clk 0:01:40.9]} 23. Rde1 {[%clk 0:02:29.1]} 23... c5
{[%clk 0:01:38.4]} 24. Qd2 {[%clk 0:02:24.3]} 24... Bh3 {[%clk 0:01:33.7]} 25.
Rf4 {[%clk 0:02:21.6]} 25... Qg7 {[%clk 0:01:24.1]} 26. Nb6 {[%clk 0:02:19.2]}
26... Rab8 {[%clk 0:01:21.2]} 27. Qd5+ {[%clk 0:02:14.7]} 27... Kh8 {[%clk
0:01:21.7]} 28. Qf7 {[%clk 0:02:10.4]} 28... Rf8 {[%clk 0:01:06.8]} 29. Qxg7+
{[%clk 0:02:09.8]} 29... Kxg7 {[%clk 0:01:08.7]} 30. Re7+ {[%clk 0:02:00.6]}
30... Kg8 {[%clk 0:01:09.6]} 31. Rh4 {[%clk 0:01:55.3]} 31... Bf5 {[%clk
0:00:53.9]} 32. Rhxh7 {[%clk 0:01:55.4]} 32... Rfe8 {[%clk 0:00:54.9]} 33. Reg7+
{[%clk 0:01:34.5]} 33... Kf8 {[%clk 0:00:55.2]} 34. Rf7+ {[%clk 0:01:27.8]}
34... Kg8 {[%clk 0:00:55.7]} 35. f3 {[%clk 0:01:22.8]} 35... Re2 {[%clk
0:00:52.2]} 36. Nd5 {[%clk 0:01:21.6]} 1-0

[Event "*** Qualifier 1: Titled Tuesday 3|2 Blitz"]
[Site "Chess.com"]
[Date "2017.04.04"]
[Round "4"]
[White "Keranke"]
[Black "joppie2"]
[Result "1-0"]
[WhiteElo "2716"]
[BlackElo "2606"]
[TimeControl "180+2"]
[EndTime "13:50:37 PDT"]
[Termination "Keranke won by resignation"]

1. d4 {[%clk 0:03:02]} 1... d5 {[%clk 0:03:00.5]} 2. Bf4 {[%clk 0:03:02.1]} 2...
Nf6 {[%clk 0:02:59.6]} 3. e3 {[%clk 0:03:03.4]} 3... e6 {[%clk 0:03:01]} 4. Nf3
{[%clk 0:03:04.2]} 4... Bd6 {[%clk 0:03:02.6]} 5. Ne5 {[%clk 0:03:05.5]} 5... b6
{[%clk 0:02:59.9]} 6. Nd2 {[%clk 0:03:06.3]} 6... c5 {[%clk 0:02:55.1]} 7. Bb5+
{[%clk 0:03:01.6]} 7... Kf8 {[%clk 0:02:47.9]} 8. c3 {[%clk 0:03:00.3]} 8... Qc7
{[%clk 0:02:46.7]} 9. Ndf3 {[%clk 0:02:40.6]} 9... Nh5 {[%clk 0:02:39.7]} 10.
Bg3 {[%clk 0:02:28.8]} 10... f6 {[%clk 0:02:29.5]} 11. Nh4 {[%clk 0:01:54.9]}
11... Nxg3 {[%clk 0:02:25]} 12. hxg3 {[%clk 0:01:56.8]} 12... fxe5 {[%clk
0:00:23.3]} 13. Ng6+ {[%clk 0:01:57.4]} 13... Kg8 {[%clk 0:00:24.8]} 14. Nxh8
{[%clk 0:01:58.6]} 14... Kxh8 {[%clk 0:00:21.3]} 15. Qh5 {[%clk 0:01:55.4]}
15... g6 {[%clk 0:00:17]} 16. Qxg6 {[%clk 0:01:56]} 16... Qg7 {[%clk 0:00:07.5]}
17. Qe8+ {[%clk 0:01:53.8]} 17... Qf8 {[%clk 0:00:08.8]} 18. Qh5 {[%clk
0:01:54.8]} 18... Qg7 {[%clk 0:00:08]} 19. dxe5 {[%clk 0:01:50.3]} 19... Bxe5
{[%clk 0:00:09.4]} 20. Bd3 {[%clk 0:01:50.4]} 20... Nd7 {[%clk 0:00:03.6]} 21.
Qe8+ {[%clk 0:01:50.5]} 21... Nf8 {[%clk 0:00:04.9]} 22. Rxh7+ {[%clk
0:01:51.4]} 22... Qxh7 {[%clk 0:00:05.2]} 23. Bxh7 {[%clk 0:01:52.5]} 23... Bb7
{[%clk 0:00:06.3]} 24. Qf7 {[%clk 0:01:53]} 24... Nxh7 {[%clk 0:00:04]} 25. Qxb7
{[%clk 0:01:53.2]} 25... Rf8 {[%clk 0:00:05.9]} 26. Ke2 {[%clk 0:01:53.5]} 26...
Bg7 {[%clk 0:00:05.4]} 27. Rh1 {[%clk 0:01:54.4]} 27... Kg8 {[%clk 0:00:07]} 28.
Qxa7 {[%clk 0:01:55.4]} 28... Ng5 {[%clk 0:00:05.7]} 29. Qxb6 {[%clk 0:01:56.2]}
29... Rf6 {[%clk 0:00:05.9]} 30. f3 {[%clk 0:01:54.2]} 30... Nf7 {[%clk
0:00:06.6]} 31. Qxc5 {[%clk 0:01:54.9]} 31... Bf8 {[%clk 0:00:08]} 32. Qc6
{[%clk 0:01:53.3]} 32... Rg6 {[%clk 0:00:09]} 33. g4 {[%clk 0:01:54]} 33... Kg7
{[%clk 0:00:10.5]} 34. Qd7 {[%clk 0:01:53.2]} 34... Kg8 {[%clk 0:00:10.5]} 35.
a4 {[%clk 0:01:53.5]} 35... Ne5 {[%clk 0:00:11.4]} 36. Qe8 {[%clk 0:01:53.2]}
36... Rg7 {[%clk 0:00:11.9]} 37. a5 {[%clk 0:01:51.1]} 37... Nc4 {[%clk
0:00:12.3]} 38. Qxe6+ {[%clk 0:01:52.1]} 1-0

[Event "*** Qualifier 1: Titled Tuesday 3|2 Blitz"]
[Site "Chess.com"]
[Date "2017.04.04"]
[Round "4"]
[White "Maung-Mg-KZH"]
[Black "Fiona"]
[Result "1-0"]
[WhiteElo "2312"]
[BlackElo "2241"]
[TimeControl "180+2"]
[EndTime "13:50:52 PDT"]
[Termination "Maung-Mg-KZH won on time"]

1. Nf3 {[%clk 0:03:02]} 1... f5 {[%clk 0:02:54.2]} 2. d4 {[%clk 0:03:02]} 2...
g6 {[%clk 0:02:37.2]} 3. c4 {[%clk 0:02:58.6]} 3... Bg7 {[%clk 0:02:36.9]} 4.
Nc3 {[%clk 0:02:59]} 4... c6 {[%clk 0:02:32.7]} 5. g3 {[%clk 0:02:55.5]} 5...
Nf6 {[%clk 0:02:33.5]} 6. Bg2 {[%clk 0:02:54.1]} 6... O-O {[%clk 0:02:34.5]} 7.
O-O {[%clk 0:02:54.9]} 7... d6 {[%clk 0:02:34.9]} 8. Re1 {[%clk 0:02:50.2]} 8...
Nbd7 {[%clk 0:02:33.8]} 9. Bf4 {[%clk 0:02:47.7]} 9... Qe8 {[%clk 0:02:31.9]}
10. e4 {[%clk 0:02:43.8]} 10... e5 {[%clk 0:02:26]} 11. exf5 {[%clk 0:02:37.3]}
11... Nh5 {[%clk 0:01:56.8]} 12. Bd2 {[%clk 0:02:27.8]} 12... gxf5 {[%clk
0:01:50]} 13. c5 {[%clk 0:02:17.1]} 13... e4 {[%clk 0:01:40.5]} 14. cxd6 {[%clk
0:02:08.8]} 14... Qg6 {[%clk 0:01:31.9]} 15. Nh4 {[%clk 0:02:05.5]} 15... Qf7
{[%clk 0:01:27.7]} 16. Bh3 {[%clk 0:02:02.8]} 16... Nb6 {[%clk 0:01:20.9]} 17.
f3 {[%clk 0:01:43.1]} 17... Bxd4+ {[%clk 0:01:20.5]} 18. Kh1 {[%clk 0:01:41.4]}
18... Bf2 {[%clk 0:00:59.7]} 19. Re2 {[%clk 0:01:36.6]} 19... Bxg3 {[%clk
0:01:00]} 20. Rg2 {[%clk 0:01:33.1]} 20... f4 {[%clk 0:00:46.8]} 21. Bxc8 {[%clk
0:01:30.4]} 21... Raxc8 {[%clk 0:00:44]} 22. Nxe4 {[%clk 0:01:27.1]} 22... Kh8
{[%clk 0:00:40.1]} 23. Bc3+ {[%clk 0:01:25.5]} 23... Ng7 {[%clk 0:00:27.2]} 24.
hxg3 {[%clk 0:01:25.6]} 24... Nd5 {[%clk 0:00:23.9]} 25. Ng5 {[%clk 0:01:19.8]}
25... Qh5 {[%clk 0:00:21.7]} 26. Bxg7+ {[%clk 0:01:18.2]} 26... Kxg7 {[%clk
0:00:21.6]} 27. Ne6+ {[%clk 0:01:19.2]} 27... Kf7 {[%clk 0:00:20.3]} 28. Nxf8
{[%clk 0:01:17.2]} 28... Rxf8 {[%clk 0:00:20]} 29. Qd4 {[%clk 0:01:13.1]} 29...
Ke8 {[%clk 0:00:16.2]} 30. Re1+ {[%clk 0:01:11.5]} 1-0

[Event "*** Qualifier 1: Titled Tuesday 3|2 Blitz"]
[Site "Chess.com"]
[Date "2017.04.04"]
[Round "4"]
[White "NTBT_DHS"]
[Black "OparinGrigoriy"]
[Result "0-1"]
[WhiteElo "2454"]
[BlackElo "2586"]
[TimeControl "180+2"]
[EndTime "13:50:59 PDT"]
[Termination "OparinGrigoriy won by resignation"]

1. d4 {[%clk 0:03:02]} 1... Nf6 {[%clk 0:03:00.4]} 2. c4 {[%clk 0:03:03.2]} 2...
e6 {[%clk 0:03:02.3]} 3. g3 {[%clk 0:03:04.6]} 3... d5 {[%clk 0:03:01.8]} 4. Nf3
{[%clk 0:03:05.5]} 4... Bb4+ {[%clk 0:03:02.3]} 5. Bd2 {[%clk 0:03:05.9]} 5...
Be7 {[%clk 0:03:03.4]} 6. Bg2 {[%clk 0:03:06.4]} 6... O-O {[%clk 0:03:05]} 7.
Qc2 {[%clk 0:03:05.7]} 7... Nbd7 {[%clk 0:03:05.9]} 8. O-O {[%clk 0:03:06]} 8...
Ne4 {[%clk 0:03:06.7]} 9. Nc3 {[%clk 0:03:06.2]} 9... Nxd2 {[%clk 0:03:06.3]}
10. Qxd2 {[%clk 0:03:07.3]} 10... c6 {[%clk 0:03:07.1]} 11. Qd3 {[%clk
0:02:49.4]} 11... f5 {[%clk 0:03:06.4]} 12. Rad1 {[%clk 0:02:38.5]} 12... Rb8
{[%clk 0:03:06.7]} 13. e3 {[%clk 0:02:30]} 13... Bd6 {[%clk 0:03:03.5]} 14. a3
{[%clk 0:02:27.7]} 14... a5 {[%clk 0:02:58]} 15. c5 {[%clk 0:02:27.6]} 15... Bc7
{[%clk 0:02:58.8]} 16. b4 {[%clk 0:02:29.2]} 16... axb4 {[%clk 0:03:00.1]} 17.
axb4 {[%clk 0:02:30.3]} 17... b5 {[%clk 0:03:01.4]} 18. Nd2 {[%clk 0:02:20.6]}
18... Nf6 {[%clk 0:03:02.3]} 19. Ra1 {[%clk 0:02:20.4]} 19... Bd7 {[%clk
0:03:02.4]} 20. f4 {[%clk 0:02:17.9]} 20... Ra8 {[%clk 0:03:00.6]} 21. h3 {[%clk
0:02:13.1]} 21... Qe7 {[%clk 0:02:54.2]} 22. Kh2 {[%clk 0:02:13.5]} 22... g5
{[%clk 0:02:48.1]} 23. Nf3 {[%clk 0:02:12.8]} 23... g4 {[%clk 0:02:41.1]} 24.
Ne5 {[%clk 0:02:10.9]} 24... gxh3 {[%clk 0:02:38.6]} 25. Bxh3 {[%clk 0:02:05.3]}
25... Kh8 {[%clk 0:02:37.8]} 26. Qe2 {[%clk 0:01:53.7]} 26... Qg7 {[%clk
0:02:30]} 27. Qf3 {[%clk 0:01:47.7]} 27... Rfd8 {[%clk 0:02:27.4]} 28. Rg1
{[%clk 0:01:42.9]} 28... Be8 {[%clk 0:02:26.3]} 29. g4 {[%clk 0:01:14.4]} 29...
Rxa1 {[%clk 0:02:22.8]} 30. Rxa1 {[%clk 0:01:14.3]} 30... fxg4 {[%clk
0:02:20.8]} 31. Nxg4 {[%clk 0:01:10.1]} 31... Bh5 {[%clk 0:02:21.6]} 32. Ra7
{[%clk 0:00:36]} 32... Bxg4 {[%clk 0:02:12.5]} 33. Qg3 {[%clk 0:00:37.2]} 33...
Rg8 {[%clk 0:02:08.5]} 34. Bxg4 {[%clk 0:00:23.7]} 34... Nxg4+ {[%clk
0:02:08.2]} 35. Kg1 {[%clk 0:00:21.1]} 35... Bxf4 {[%clk 0:02:02.6]} 36. Qxf4
{[%clk 0:00:19.2]} 36... Qxa7 {[%clk 0:02:02.4]} 37. Ne2 {[%clk 0:00:16.3]}
37... Qa1+ {[%clk 0:01:57.7]} 38. Kg2 {[%clk 0:00:16.6]} 38... Qa7 {[%clk
0:01:49.2]} 39. Ng3 {[%clk 0:00:16.6]} 39... Qg7 {[%clk 0:01:49]} 40. Kf3 {[%clk
0:00:17.2]} 40... Rf8 {[%clk 0:01:48.5]} 0-1

[Event "*** Qualifier 1: Titled Tuesday 3|2 Blitz"]
[Site "Chess.com"]
[Date "2017.04.04"]
[Round "4"]
[White "MagnusSeinFanboy"]
[Black "keisyzrk"]
[Result "0-1"]
[WhiteElo "2233"]
[BlackElo "2251"]
[TimeControl "180+2"]
[EndTime "13:51:29 PDT"]
[Termination "keisyzrk won by resignation"]

1. Nf3 {[%clk 0:03:02]} 1... Nf6 {[%clk 0:02:56.5]} 2. c4 {[%clk 0:03:01.5]}
2... g6 {[%clk 0:02:51.4]} 3. Nc3 {[%clk 0:03:02.3]} 3... d5 {[%clk 0:02:43.7]}
4. cxd5 {[%clk 0:02:55.3]} 4... Nxd5 {[%clk 0:02:45.1]} 5. h4 {[%clk 0:02:56.9]}
5... h6 {[%clk 0:02:36.8]} 6. e4 {[%clk 0:02:51.7]} 6... Nxc3 {[%clk 0:02:33]}
7. dxc3 {[%clk 0:02:53.4]} 7... Bg7 {[%clk 0:02:34.6]} 8. Qxd8+ {[%clk
0:02:43.1]} 8... Kxd8 {[%clk 0:02:35.7]} 9. Bf4 {[%clk 0:02:34.2]} 9... Nd7
{[%clk 0:02:32.2]} 10. O-O-O {[%clk 0:02:18.6]} 10... c6 {[%clk 0:02:33.2]} 11.
Bc4 {[%clk 0:01:44.7]} 11... Ke8 {[%clk 0:02:34.1]} 12. Rd2 {[%clk 0:01:40.3]}
12... Nc5 {[%clk 0:02:13.4]} 13. Rhd1 {[%clk 0:01:33.1]} 13... Be6 {[%clk
0:02:13.4]} 14. Bc7 {[%clk 0:01:21.6]} 14... f6 {[%clk 0:01:47.5]} 15. Bxe6
{[%clk 0:00:55.5]} 15... Nxe6 {[%clk 0:01:46.9]} 16. Bg3 {[%clk 0:00:51.3]}
16... Kf7 {[%clk 0:01:44.9]} 17. h5 {[%clk 0:00:30.1]} 17... gxh5 {[%clk
0:01:21.8]} 18. Nh4 {[%clk 0:00:25.8]} 18... Rhd8 {[%clk 0:01:14.9]} 19. Nf5
{[%clk 0:00:25.3]} 19... Bf8 {[%clk 0:01:12.1]} 20. Rd7 {[%clk 0:00:19.5]} 20...
Rxd7 {[%clk 0:01:09.7]} 21. Rxd7 {[%clk 0:00:21.4]} 21... Nc5 {[%clk 0:01:09.9]}
22. Rc7 {[%clk 0:00:17.8]} 22... Nxe4 {[%clk 0:00:43.9]} 23. Rxb7 {[%clk
0:00:17.5]} 23... Nxg3 {[%clk 0:00:43.9]} 24. Nxg3 {[%clk 0:00:18.4]} 24... Kg6
{[%clk 0:00:44.4]} 25. Rc7 {[%clk 0:00:19.6]} 25... h4 {[%clk 0:00:40.2]} 26.
Ne2 {[%clk 0:00:20]} 26... e6 {[%clk 0:00:38.4]} 27. Rxc6 {[%clk 0:00:20.9]}
27... Kf5 {[%clk 0:00:39.3]} 28. Nd4+ {[%clk 0:00:21.1]} 28... Kg6 {[%clk
0:00:37.1]} 29. Nxe6 {[%clk 0:00:20.5]} 29... Be7 {[%clk 0:00:37.3]} 30. Nc7
{[%clk 0:00:20.9]} 30... Rc8 {[%clk 0:00:36.8]} 31. c4 {[%clk 0:00:19.7]} 31...
Bd8 {[%clk 0:00:37.1]} 32. Rd6 {[%clk 0:00:13.7]} 32... Bxc7 {[%clk 0:00:37.6]}
33. Rc6 {[%clk 0:00:14.8]} 33... Bf4+ {[%clk 0:00:38.1]} 0-1